[Event "*** Titled Tuesday Blitz"]
[Site "Chess.com"]
[Date "2019.02.05"]
[Round "1"]
[White "KhalilMousavi77"]
[Black "Witaliss"]
[Result "1-0"]
[WhiteElo "2748"]
[BlackElo "2363"]
[TimeControl "180+2"]
[EndTime "13:05:10 PST"]
[Termination "KhalilMousavi77 won by resignation"]

1. c4 {[%clk 0:03:01.9]} 1... Nf6 {[%clk 0:02:59.6]} 2. Nc3 {[%clk 0:03:03.5]}
2... c6 {[%clk 0:03:00.3]} 3. d4 {[%clk 0:03:04.3]} 3... d5 {[%clk 0:03:00.6]}
4. Nf3 {[%clk 0:03:06.2]} 4... dxc4 {[%clk 0:03:00.7]} 5. e4 {[%clk 0:03:07.1]}
5... b5 {[%clk 0:03:00.3]} 6. Be2 {[%clk 0:03:08.9]} 6... b4 {[%clk 0:02:59.1]}
7. Na4 {[%clk 0:03:08.5]} 7... Nxe4 {[%clk 0:02:59.6]} 8. Bxc4 {[%clk
0:03:10.2]} 8... e6 {[%clk 0:03:00.1]} 9. O-O {[%clk 0:03:11.4]} 9... Be7 {[%clk
0:03:00.4]} 10. Re1 {[%clk 0:03:12.2]} 10... Nf6 {[%clk 0:03:00.6]} 11. Ne5
{[%clk 0:03:12.7]} 11... O-O {[%clk 0:02:59.1]} 12. Bg5 {[%clk 0:03:13.7]} 12...
Bb7 {[%clk 0:02:59.1]} 13. Bxf6 {[%clk 0:03:13.9]} 13... Bxf6 {[%clk 0:02:57.2]}
14. Nc5 {[%clk 0:03:13.7]} 14... Qc7 {[%clk 0:02:54.1]} 15. Qg4 {[%clk
0:03:10.7]} 15... Bxe5 {[%clk 0:02:52]} 16. dxe5 {[%clk 0:03:12.6]} 16... Nd7
{[%clk 0:02:52.6]} 17. Nxe6 {[%clk 0:03:12.9]} 17... fxe6 {[%clk 0:02:46.4]} 18.
Bxe6+ {[%clk 0:03:13.1]} 18... Kh8 {[%clk 0:02:47.3]} 19. Bxd7 {[%clk 0:03:14]}
19... c5 {[%clk 0:02:44.4]} 20. e6 {[%clk 0:03:13.1]} 20... Bc6 {[%clk
0:02:40.5]} 21. e7 {[%clk 0:03:10.4]} 21... Rg8 {[%clk 0:02:26.8]} 22. e8=Q
{[%clk 0:03:07.2]} 22... Raxe8 {[%clk 0:02:26.9]} 23. Rxe8 {[%clk 0:03:02.5]}
23... Rxe8 {[%clk 0:02:27.7]} 24. Bxe8 {[%clk 0:03:02.5]} 24... Bxe8 {[%clk
0:02:28.6]} 25. Re1 {[%clk 0:03:00.1]} 25... Bf7 {[%clk 0:02:28.8]} 26. Qg3
{[%clk 0:02:57.1]} 26... Qxg3 {[%clk 0:02:17.8]} 27. hxg3 {[%clk 0:02:55.8]}
27... Bxa2 {[%clk 0:02:17.7]} 28. Re8+ {[%clk 0:02:55.7]} 28... Bg8 {[%clk
0:02:18.1]} 29. Ra8 {[%clk 0:02:57.6]} 29... h6 {[%clk 0:02:15.7]} 30. Rxa7
{[%clk 0:02:56.7]} 30... Kh7 {[%clk 0:02:15.3]} 31. Rc7 {[%clk 0:02:53]} 31...
c4 {[%clk 0:02:12.3]} 32. Rb7 {[%clk 0:02:54.2]} 32... b3 {[%clk 0:02:08.5]} 33.
Kf1 {[%clk 0:02:52.8]} 33... Bd5 {[%clk 0:02:07.4]} 34. Rb6 {[%clk 0:02:52]}
34... h5 {[%clk 0:02:06.3]} 35. f3 {[%clk 0:02:51.5]} 35... g5 {[%clk
0:02:05.2]} 36. Ke2 {[%clk 0:02:48.3]} 36... Kg7 {[%clk 0:02:04.8]} 37. Rb5
{[%clk 0:02:43.1]} 37... Bf7 {[%clk 0:02:01.8]} 38. Rxg5+ {[%clk 0:02:42.8]}
38... Kf6 {[%clk 0:02:02.7]} 39. Rc5 {[%clk 0:02:41.5]} 39... Kg6 {[%clk
0:01:56]} 40. Kd2 {[%clk 0:02:41.4]} 40... Kf6 {[%clk 0:01:55.9]} 41. Kc3 {[%clk
0:02:41.5]} 41... Kg6 {[%clk 0:01:55.4]} 42. Rxc4 {[%clk 0:02:40.8]} 42... Bxc4
{[%clk 0:01:55.9]} 43. Kxc4 {[%clk 0:02:42.7]} 1-0

[Event "*** Titled Tuesday Blitz"]
[Site "Chess.com"]
[Date "2019.02.05"]
[Round "1"]
[White "Gordima"]
[Black "JoakimVonAnd"]
[Result "1-0"]
[WhiteElo "2703"]
[BlackElo "2321"]
[TimeControl "180+2"]
[EndTime "13:05:12 PST"]
[Termination "Gordima won by resignation"]

1. Nf3 {[%clk 0:03:00.8]} 1... d5 {[%clk 0:02:59]} 2. c4 {[%clk 0:03:00.8]} 2...
e6 {[%clk 0:02:59.9]} 3. e3 {[%clk 0:03:01.7]} 3... Nf6 {[%clk 0:03:01]} 4. b3
{[%clk 0:03:02.8]} 4... Be7 {[%clk 0:03:01.2]} 5. Bb2 {[%clk 0:03:04.3]} 5...
O-O {[%clk 0:03:02.3]} 6. Nc3 {[%clk 0:03:05.9]} 6... c5 {[%clk 0:03:03]} 7.
cxd5 {[%clk 0:03:07.1]} 7... exd5 {[%clk 0:03:02.9]} 8. d4 {[%clk 0:03:07.4]}
8... b6 {[%clk 0:03:04.4]} 9. Bd3 {[%clk 0:03:04.4]} 9... Bb7 {[%clk 0:03:05]}
10. O-O {[%clk 0:03:05.6]} 10... Nbd7 {[%clk 0:03:06.2]} 11. Rc1 {[%clk
0:02:58.7]} 11... Ne4 {[%clk 0:03:06.7]} 12. Qc2 {[%clk 0:02:54.1]} 12... f5
{[%clk 0:03:07.6]} 13. Ne2 {[%clk 0:02:46.6]} 13... Rc8 {[%clk 0:03:08]} 14. Qb1
{[%clk 0:02:42.6]} 14... a6 {[%clk 0:03:06.4]} 15. Nf4 {[%clk 0:02:38]} 15... b5
{[%clk 0:03:02.3]} 16. Ne6 {[%clk 0:02:36.2]} 16... Qe8 {[%clk 0:03:01.9]} 17.
Nxf8 {[%clk 0:02:32.9]} 17... Qxf8 {[%clk 0:03:03.8]} 18. dxc5 {[%clk 0:02:30]}
18... Ndxc5 {[%clk 0:03:04.8]} 19. Bd4 {[%clk 0:02:21.3]} 19... f4 {[%clk
0:03:04.9]} 20. exf4 {[%clk 0:02:04.3]} 20... Qxf4 {[%clk 0:03:06.8]} 21. b4
{[%clk 0:02:01]} 21... Ne6 {[%clk 0:03:00.4]} 22. Rxc8+ {[%clk 0:02:02.9]} 22...
Bxc8 {[%clk 0:03:02]} 23. Be5 {[%clk 0:01:54.5]} 23... Qg4 {[%clk 0:03:00.8]}
24. h3 {[%clk 0:01:51.5]} 24... Qg6 {[%clk 0:03:00.4]} 25. Qc2 {[%clk
0:01:21.1]} 25... Bd7 {[%clk 0:02:52.4]} 26. Kh1 {[%clk 0:01:03.2]} 26... Nf8
{[%clk 0:02:36.4]} 27. Bh2 {[%clk 0:00:53.3]} 27... Qf5 {[%clk 0:02:34.6]} 28.
Ne5 {[%clk 0:00:51]} 28... Be6 {[%clk 0:02:34.8]} 29. f3 {[%clk 0:00:51.5]}
29... Qh5 {[%clk 0:02:22.6]} 30. fxe4 {[%clk 0:00:50.9]} 30... dxe4 {[%clk
0:02:24.5]} 31. Bxe4 {[%clk 0:00:52.1]} 1-0

[Event "*** Titled Tuesday Blitz"]
[Site "Chess.com"]
[Date "2019.02.05"]
[Round "1"]
[White "Wolverine_master"]
[Black "metra93"]
[Result "0-1"]
[WhiteElo "2147"]
[BlackElo "2537"]
[TimeControl "180+2"]
[EndTime "13:05:17 PST"]
[Termination "metra93 won by resignation"]

1. Nf3 {[%clk 0:03:01.9]} 1... d5 {[%clk 0:02:52.7]} 2. g3 {[%clk 0:03:02.5]}
2... Nc6 {[%clk 0:02:52.4]} 3. d4 {[%clk 0:03:03.7]} 3... Bg4 {[%clk 0:02:48.7]}
4. Bg2 {[%clk 0:03:04.9]} 4... Qd7 {[%clk 0:02:48.1]} 5. h3 {[%clk 0:03:02.3]}
5... Bxf3 {[%clk 0:02:48.6]} 6. Bxf3 {[%clk 0:03:03]} 6... f5 {[%clk 0:02:49.4]}
7. Bf4 {[%clk 0:03:03.6]} 7... e6 {[%clk 0:02:49.3]} 8. O-O {[%clk 0:02:56]}
8... O-O-O {[%clk 0:02:49.5]} 9. b3 {[%clk 0:02:56.1]} 9... h6 {[%clk
0:02:50.2]} 10. a3 {[%clk 0:02:45.4]} 10... g5 {[%clk 0:02:49.9]} 11. Be5 {[%clk
0:02:46.8]} 11... Nxe5 {[%clk 0:02:46.4]} 12. dxe5 {[%clk 0:02:48.7]} 12... Bg7
{[%clk 0:02:47.3]} 13. Qd4 {[%clk 0:02:48.9]} 13... Kb8 {[%clk 0:02:41.7]} 14.
Bg2 {[%clk 0:02:42.9]} 14... f4 {[%clk 0:02:20.2]} 15. gxf4 {[%clk 0:02:42.2]}
15... Ne7 {[%clk 0:02:20.8]} 16. fxg5 {[%clk 0:02:40.2]} 16... Nc6 {[%clk
0:02:04.4]} 17. Qa4 {[%clk 0:02:37.8]} 17... Bxe5 {[%clk 0:02:02.7]} 18. Ra2
{[%clk 0:02:36.7]} 18... hxg5 {[%clk 0:02:02.7]} 19. Nd2 {[%clk 0:02:36.2]}
19... g4 {[%clk 0:02:01.2]} 20. f4 {[%clk 0:02:32.6]} 20... Bd4+ {[%clk
0:01:38.9]} 21. Kh1 {[%clk 0:02:29.8]} 21... Rdg8 {[%clk 0:01:28.1]} 22. c3
{[%clk 0:02:02.7]} 22... Be3 {[%clk 0:01:00.1]} 23. c4 {[%clk 0:01:48.5]} 23...
gxh3 {[%clk 0:01:00.7]} 24. Bf3 {[%clk 0:01:48.1]} 24... Qg7 {[%clk 0:01:00.7]}
0-1

[Event "*** Titled Tuesday Blitz"]
[Site "Chess.com"]
[Date "2019.02.05"]
[Round "1"]
[White "Didici"]
[Black "vgyogi"]
[Result "1-0"]
[WhiteElo "2562"]
[BlackElo "2183"]
[TimeControl "180+2"]
[EndTime "13:05:22 PST"]
[Termination "Didici won by resignation"]

1. d4 {[%clk 0:03:01.9]} 1... d5 {[%clk 0:02:59.3]} 2. c4 {[%clk 0:03:02.6]}
2... e6 {[%clk 0:03:00.1]} 3. Nc3 {[%clk 0:03:03.3]} 3... a6 {[%clk 0:03:00.7]}
4. g3 {[%clk 0:03:01.6]} 4... dxc4 {[%clk 0:02:57.6]} 5. Bg2 {[%clk 0:03:03.1]}
5... Nf6 {[%clk 0:02:56.8]} 6. e4 {[%clk 0:03:02.2]} 6... Be7 {[%clk 0:02:50.5]}
7. Nf3 {[%clk 0:03:01.7]} 7... O-O {[%clk 0:02:51.5]} 8. O-O {[%clk 0:03:02.1]}
8... b5 {[%clk 0:02:52.2]} 9. e5 {[%clk 0:03:00.5]} 9... Nd5 {[%clk 0:02:52.4]}
10. a4 {[%clk 0:03:02.1]} 10... Bb7 {[%clk 0:02:45.5]} 11. h4 {[%clk 0:03:01.8]}
11... Nd7 {[%clk 0:02:40.7]} 12. Bg5 {[%clk 0:01:52.2]} 12... Nxc3 {[%clk
0:02:18.1]} 13. bxc3 {[%clk 0:01:50.4]} 13... Bxg5 {[%clk 0:02:18]} 14. hxg5
{[%clk 0:01:50]} 14... c5 {[%clk 0:02:14.3]} 15. Qb1 {[%clk 0:01:30.7]} 15...
Qb6 {[%clk 0:02:04]} 16. Qb2 {[%clk 0:01:23.3]} 16... cxd4 {[%clk 0:01:54.7]}
17. cxd4 {[%clk 0:01:19.5]} 17... Bd5 {[%clk 0:01:45.2]} 18. a5 {[%clk
0:01:10.2]} 18... Qb7 {[%clk 0:01:40.2]} 19. Nh4 {[%clk 0:01:11.3]} 19... Nb6
{[%clk 0:01:33.6]} 20. axb6 {[%clk 0:01:09.8]} 20... Bxg2 {[%clk 0:01:33.6]} 21.
Nxg2 {[%clk 0:01:09.5]} 21... Qxb6 {[%clk 0:01:34.7]} 22. Ne3 {[%clk 0:01:07.4]}
22... Rad8 {[%clk 0:01:36.2]} 23. Rfd1 {[%clk 0:01:06.8]} 23... b4 {[%clk
0:01:32.9]} 24. Nxc4 {[%clk 0:01:07.1]} 24... Qb5 {[%clk 0:01:30.5]} 25. Nd6
{[%clk 0:01:06.4]} 1-0

[Event "*** Titled Tuesday Blitz"]
[Site "Chess.com"]
[Date "2019.02.05"]
[Round "1"]
[White "eljanov"]
[Black "SCIM"]
[Result "1-0"]
[WhiteElo "2813"]
[BlackElo "2397"]
[TimeControl "180+2"]
[EndTime "13:05:29 PST"]
[Termination "eljanov won by resignation"]

1. c4 {[%clk 0:02:55.5]} 1... g6 {[%clk 0:02:59.7]} 2. Nc3 {[%clk 0:02:52]} 2...
c5 {[%clk 0:02:59.1]} 3. g3 {[%clk 0:02:51.4]} 3... Nc6 {[%clk 0:02:59.3]} 4.
Bg2 {[%clk 0:02:52.1]} 4... Bg7 {[%clk 0:03:00.9]} 5. d3 {[%clk 0:02:51.8]} 5...
e6 {[%clk 0:03:01.2]} 6. e4 {[%clk 0:02:52.6]} 6... Nge7 {[%clk 0:03:00.2]} 7.
Nge2 {[%clk 0:02:54.2]} 7... O-O {[%clk 0:02:59.8]} 8. h4 {[%clk 0:02:55]} 8...
h6 {[%clk 0:02:58]} 9. h5 {[%clk 0:02:56]} 9... g5 {[%clk 0:02:57.3]} 10. f4
{[%clk 0:02:57.2]} 10... g4 {[%clk 0:02:39.8]} 11. Be3 {[%clk 0:02:50.4]} 11...
b6 {[%clk 0:02:36.1]} 12. d4 {[%clk 0:02:48]} 12... cxd4 {[%clk 0:02:32.1]} 13.
Nxd4 {[%clk 0:02:48.3]} 13... Nxd4 {[%clk 0:02:09.5]} 14. Bxd4 {[%clk 0:02:48]}
14... Bxd4 {[%clk 0:02:11.1]} 15. Qxd4 {[%clk 0:02:48.8]} 15... Nc6 {[%clk
0:02:12.7]} 16. Qd1 {[%clk 0:02:34]} 16... f5 {[%clk 0:02:13]} 17. Qd6 {[%clk
0:02:19.4]} 17... Ba6 {[%clk 0:01:49.3]} 18. O-O-O {[%clk 0:02:07]} 18... Qf6
{[%clk 0:01:07.3]} 19. e5 {[%clk 0:01:56.5]} 19... Qf7 {[%clk 0:01:00.3]} 20.
Qxd7 {[%clk 0:01:57]} 20... Qxd7 {[%clk 0:00:51.7]} 21. Rxd7 {[%clk 0:01:57.5]}
21... Rac8 {[%clk 0:00:53.6]} 22. b3 {[%clk 0:01:56.3]} 22... b5 {[%clk
0:00:50.9]} 23. Rd6 {[%clk 0:01:49.3]} 23... Nb4 {[%clk 0:00:39.9]} 24. a3
{[%clk 0:01:48.4]} 1-0

[Event "*** Titled Tuesday Blitz"]
[Site "Chess.com"]
[Date "2019.02.05"]
[Round "1"]
[White "Caisachess"]
[Black "robbykevlishvili"]
[Result "1-0"]
[WhiteElo "2393"]
[BlackElo "2749"]
[TimeControl "180+2"]
[EndTime "13:05:31 PST"]
[Termination "Caisachess won by checkmate"]

1. e4 {[%clk 0:03:01.9]} 1... c5 {[%clk 0:02:59]} 2. c3 {[%clk 0:03:02.8]} 2...
d5 {[%clk 0:02:54.7]} 3. exd5 {[%clk 0:03:04.1]} 3... Qxd5 {[%clk 0:02:56.6]} 4.
d4 {[%clk 0:03:05.7]} 4... Nf6 {[%clk 0:02:54.2]} 5. Nf3 {[%clk 0:03:06.7]} 5...
Nc6 {[%clk 0:02:51.7]} 6. Be3 {[%clk 0:03:05.6]} 6... cxd4 {[%clk 0:02:52.3]} 7.
cxd4 {[%clk 0:03:06.2]} 7... e6 {[%clk 0:02:53.5]} 8. Nc3 {[%clk 0:03:07.7]}
8... Bb4 {[%clk 0:02:52.6]} 9. Bd3 {[%clk 0:03:08.2]} 9... O-O {[%clk
0:02:52.5]} 10. O-O {[%clk 0:03:09.4]} 10... Qd8 {[%clk 0:02:52.5]} 11. Qe2
{[%clk 0:03:09.9]} 11... h6 {[%clk 0:02:48.7]} 12. Rad1 {[%clk 0:03:11]} 12...
b6 {[%clk 0:02:47.1]} 13. Bb1 {[%clk 0:03:08.7]} 13... Bxc3 {[%clk 0:02:42.7]}
14. bxc3 {[%clk 0:03:09.4]} 14... Ne7 {[%clk 0:02:44.2]} 15. c4 {[%clk
0:03:10.2]} 15... Bb7 {[%clk 0:02:43.4]} 16. Rfe1 {[%clk 0:03:01.3]} 16... Re8
{[%clk 0:02:27.6]} 17. Ne5 {[%clk 0:03:01.2]} 17... Rc8 {[%clk 0:02:24.7]} 18.
Bc1 {[%clk 0:02:46.6]} 18... Nc6 {[%clk 0:02:18.3]} 19. Qe3 {[%clk 0:02:27.4]}
19... Qc7 {[%clk 0:02:02.3]} 20. Qg3 {[%clk 0:02:19.9]} 20... Kh8 {[%clk
0:01:26.9]} 21. Qh4 {[%clk 0:02:02.4]} 21... Nb8 {[%clk 0:01:22.5]} 22. Bxh6
{[%clk 0:01:55.8]} 22... Kg8 {[%clk 0:01:17.9]} 23. Bxg7 {[%clk 0:01:43.6]}
23... Kxg7 {[%clk 0:00:58.7]} 24. Qg5+ {[%clk 0:01:44.5]} 24... Kf8 {[%clk
0:00:59.7]} 25. Qxf6 {[%clk 0:01:44.5]} 25... Nc6 {[%clk 0:00:52]} 26. Ng6+
{[%clk 0:01:41.9]} 26... Kg8 {[%clk 0:00:53.5]} 27. Qh8# {[%clk 0:01:42.8]} 1-0

[Event "*** Titled Tuesday Blitz"]
[Site "Chess.com"]
[Date "2019.02.05"]
[Round "1"]
[White "wonderfultime"]
[Black "sergeikim"]
[Result "1/2-1/2"]
[WhiteElo "2895"]
[BlackElo "2460"]
[TimeControl "180+2"]
[EndTime "13:05:41 PST"]
[Termination "Game drawn by repetition"]

1. Nf3 {[%clk 0:03:01.9]} 1... Nf6 {[%clk 0:02:58.1]} 2. c4 {[%clk 0:03:02.4]}
2... g6 {[%clk 0:02:58.9]} 3. g3 {[%clk 0:03:01.3]} 3... Bg7 {[%clk 0:03:00]} 4.
Bg2 {[%clk 0:03:02.9]} 4... O-O {[%clk 0:03:01]} 5. O-O {[%clk 0:03:03.8]} 5...
d6 {[%clk 0:03:02]} 6. d4 {[%clk 0:03:03.4]} 6... Nbd7 {[%clk 0:03:01.9]} 7. Nc3
{[%clk 0:03:00.6]} 7... e5 {[%clk 0:03:02.8]} 8. Qc2 {[%clk 0:02:59.8]} 8...
exd4 {[%clk 0:03:01.9]} 9. Nxd4 {[%clk 0:03:00.7]} 9... Re8 {[%clk 0:03:03.4]}
10. Rd1 {[%clk 0:02:58.2]} 10... Nc5 {[%clk 0:03:03.5]} 11. b3 {[%clk
0:02:58.8]} 11... c6 {[%clk 0:03:03.8]} 12. Bb2 {[%clk 0:02:52.7]} 12... Qe7
{[%clk 0:03:03.2]} 13. h3 {[%clk 0:02:52]} 13... Nfe4 {[%clk 0:03:03.1]} 14.
Nxe4 {[%clk 0:02:52]} 14... Nxe4 {[%clk 0:03:03.1]} 15. e3 {[%clk 0:02:14.3]}
15... a5 {[%clk 0:03:01]} 16. a3 {[%clk 0:02:03.5]} 16... h5 {[%clk 0:02:58.6]}
17. Nf3 {[%clk 0:02:03.8]} 17... Bxb2 {[%clk 0:02:52.7]} 18. Qxb2 {[%clk
0:02:05.7]} 18... Bf5 {[%clk 0:02:45.2]} 19. b4 {[%clk 0:02:01.9]} 19... axb4
{[%clk 0:02:42.1]} 20. axb4 {[%clk 0:02:03.8]} 20... Rxa1 {[%clk 0:02:42.1]} 21.
Qxa1 {[%clk 0:02:05.5]} 21... Nxf2 {[%clk 0:02:30.6]} 22. Kxf2 {[%clk
0:01:31.9]} 22... Qxe3+ {[%clk 0:02:29.5]} 23. Kf1 {[%clk 0:01:33.3]} 23... Bxh3
{[%clk 0:02:29.2]} 24. Ng1 {[%clk 0:00:54.9]} 24... Bg4 {[%clk 0:02:12.6]} 25.
Re1 {[%clk 0:00:37.6]} 25... Qd3+ {[%clk 0:02:07.8]} 26. Kf2 {[%clk 0:00:39]}
26... Qd2+ {[%clk 0:02:00.6]} 27. Kf1 {[%clk 0:00:39.8]} 27... Qd3+ {[%clk
0:01:59]} 28. Kf2 {[%clk 0:00:39.4]} 28... Qd2+ {[%clk 0:01:57.2]} 29. Kf1
{[%clk 0:00:40.5]} 29... Qd3+ {[%clk 0:01:55.8]} 1/2-1/2

[Event "*** Titled Tuesday Blitz"]
[Site "Chess.com"]
[Date "2019.02.05"]
[Round "1"]
[White "Keaton87"]
[Black "Shivagami"]
[Result "1-0"]
[WhiteElo "2534"]
[BlackElo "2142"]
[TimeControl "180+2"]
[EndTime "13:05:46 PST"]
[Termination "Keaton87 won by resignation"]

1. d4 {[%clk 0:03:01.9]} 1... d5 {[%clk 0:02:56.7]} 2. Nc3 {[%clk 0:03:02.9]}
2... Nf6 {[%clk 0:02:56.4]} 3. Bf4 {[%clk 0:03:03.9]} 3... c5 {[%clk 0:02:55.7]}
4. e3 {[%clk 0:03:04.5]} 4... Nc6 {[%clk 0:02:53.3]} 5. Nb5 {[%clk 0:03:04.3]}
5... e5 {[%clk 0:02:31.1]} 6. dxe5 {[%clk 0:03:04.3]} 6... Ne4 {[%clk
0:02:02.8]} 7. Qxd5 {[%clk 0:02:50.7]} 7... Qxd5 {[%clk 0:01:42.9]} 8. Nc7+
{[%clk 0:02:51.1]} 8... Kd8 {[%clk 0:01:38.7]} 9. Nxd5 {[%clk 0:02:53]} 9... Be6
{[%clk 0:01:38.6]} 10. Rd1 {[%clk 0:02:47.7]} 10... Kc8 {[%clk 0:01:32.3]} 11.
h4 {[%clk 0:02:31.8]} 11... Bxd5 {[%clk 0:01:28.2]} 12. Rxd5 {[%clk 0:02:31.9]}
12... Nb4 {[%clk 0:01:29.1]} 13. Rd1 {[%clk 0:02:04.3]} 13... Nxc2+ {[%clk
0:01:28.5]} 14. Ke2 {[%clk 0:02:05.7]} 14... f6 {[%clk 0:00:45.9]} 15. a3 {[%clk
0:01:36.8]} 15... fxe5 {[%clk 0:00:27.3]} 16. Bxe5 {[%clk 0:01:37.4]} 16... Be7
{[%clk 0:00:08.7]} 17. g3 {[%clk 0:01:36.8]} 17... Rf8 {[%clk 0:00:08.6]} 18.
Bh3+ {[%clk 0:01:37.7]} 1-0

[Event "*** Titled Tuesday Blitz"]
[Site "Chess.com"]
[Date "2019.02.05"]
[Round "1"]
[White "jncool68"]
[Black "Eliwood44"]
[Result "1-0"]
[WhiteElo "2544"]
[BlackElo "2161"]
[TimeControl "180+2"]
[EndTime "13:06:03 PST"]
[Termination "jncool68 won by resignation"]

1. e4 {[%clk 0:03:01.6]} 1... e5 {[%clk 0:02:59.9]} 2. Nf3 {[%clk 0:03:02.1]}
2... Nc6 {[%clk 0:02:59.5]} 3. Bb5 {[%clk 0:03:02.8]} 3... g6 {[%clk 0:02:59.8]}
4. c3 {[%clk 0:03:03]} 4... a6 {[%clk 0:03:00.3]} 5. Ba4 {[%clk 0:03:02.9]} 5...
Bg7 {[%clk 0:03:00.7]} 6. d4 {[%clk 0:03:03.8]} 6... exd4 {[%clk 0:03:01.4]} 7.
cxd4 {[%clk 0:03:05.1]} 7... b5 {[%clk 0:03:02.6]} 8. Bc2 {[%clk 0:03:05.2]}
8... Nge7 {[%clk 0:03:00.5]} 9. d5 {[%clk 0:03:05.2]} 9... Nb4 {[%clk
0:02:46.2]} 10. Bb3 {[%clk 0:03:05.6]} 10... a5 {[%clk 0:02:47.5]} 11. a3 {[%clk
0:03:05.2]} 11... Na6 {[%clk 0:02:48.2]} 12. Nc3 {[%clk 0:02:50.9]} 12... Nc5
{[%clk 0:02:09.5]} 13. Bc2 {[%clk 0:02:49.9]} 13... Ba6 {[%clk 0:02:05.6]} 14.
Be3 {[%clk 0:02:42.7]} 14... Na4 {[%clk 0:01:48.9]} 15. Nxa4 {[%clk 0:02:26.2]}
15... bxa4 {[%clk 0:01:50.8]} 16. Bd4 {[%clk 0:02:27.2]} 16... Bxd4 {[%clk
0:01:32.7]} 17. Qxd4 {[%clk 0:02:25.2]} 17... O-O {[%clk 0:01:33.9]} 18. h4
{[%clk 0:02:25.1]} 18... c5 {[%clk 0:01:31.4]} 19. Qc3 {[%clk 0:02:23.5]} 19...
Re8 {[%clk 0:01:26.8]} 20. O-O-O {[%clk 0:02:20.6]} 20... Qb8 {[%clk 0:00:42.8]}
21. h5 {[%clk 0:02:18.1]} 21... Qf4+ {[%clk 0:00:22.7]} 22. Kb1 {[%clk
0:02:18.6]} 22... Be2 {[%clk 0:00:23.7]} 23. Rh4 {[%clk 0:02:12.2]} 23... Qb8
{[%clk 0:00:13.9]} 24. Rdh1 {[%clk 0:02:07.2]} 24... Bxf3 {[%clk 0:00:14]} 25.
gxf3 {[%clk 0:02:06.9]} 25... g5 {[%clk 0:00:10.3]} 26. h6 {[%clk 0:02:07]}
26... Nf5 {[%clk 0:00:04.8]} 27. exf5 {[%clk 0:02:03.6]} 27... Re5 {[%clk
0:00:05.8]} 28. Rg4 {[%clk 0:02:00.1]} 28... f6 {[%clk 0:00:07]} 29. f4 {[%clk
0:02:01.2]} 1-0

[Event "*** Titled Tuesday Blitz"]
[Site "Chess.com"]
[Date "2019.02.05"]
[Round "1"]
[White "Satscho"]
[Black "nubair1198"]
[Result "0-1"]
[WhiteElo "2299"]
[BlackElo "2673"]
[TimeControl "180+2"]
[EndTime "13:06:14 PST"]
[Termination "nubair1198 won by resignation"]

1. e4 {[%clk 0:03:01.3]} 1... g6 {[%clk 0:03:00.1]} 2. d4 {[%clk 0:03:02]} 2...
Bg7 {[%clk 0:03:01.2]} 3. Nc3 {[%clk 0:03:03.4]} 3... c6 {[%clk 0:03:02]} 4. h3
{[%clk 0:03:02.4]} 4... d6 {[%clk 0:03:00.3]} 5. Nf3 {[%clk 0:03:03.6]} 5... Nf6
{[%clk 0:02:59.2]} 6. Be2 {[%clk 0:03:04.1]} 6... O-O {[%clk 0:03:00.4]} 7. O-O
{[%clk 0:03:05]} 7... Nbd7 {[%clk 0:03:01.7]} 8. a4 {[%clk 0:03:05.5]} 8... e5
{[%clk 0:03:03.1]} 9. Be3 {[%clk 0:03:05]} 9... Qe7 {[%clk 0:03:04.6]} 10. dxe5
{[%clk 0:02:59]} 10... dxe5 {[%clk 0:03:06.5]} 11. a5 {[%clk 0:02:25.3]} 11...
Nc5 {[%clk 0:03:02.9]} 12. Nd2 {[%clk 0:02:26.4]} 12... Rd8 {[%clk 0:03:04.4]}
13. Qc1 {[%clk 0:02:26.6]} 13... Ne6 {[%clk 0:03:05.1]} 14. Na4 {[%clk
0:02:15.3]} 14... Nd4 {[%clk 0:03:02.3]} 15. Bd3 {[%clk 0:02:12.7]} 15... Nh5
{[%clk 0:03:01.8]} 16. c3 {[%clk 0:02:13.2]} 16... Nb3 {[%clk 0:02:48.8]} 17.
Nxb3 {[%clk 0:02:13.9]} 17... Rxd3 {[%clk 0:02:50.4]} 18. a6 {[%clk 0:02:06.8]}
18... b6 {[%clk 0:02:50.1]} 19. Bxb6 {[%clk 0:02:07.4]} 19... Bxh3 {[%clk
0:02:11]} 20. Be3 {[%clk 0:02:02.5]} 20... Bc8 {[%clk 0:01:19.9]} 21. Nac5
{[%clk 0:02:03]} 21... Rd8 {[%clk 0:01:19.3]} 22. Rd1 {[%clk 0:02:02.8]} 22...
Rxd1+ {[%clk 0:01:19.7]} 23. Qxd1 {[%clk 0:02:04.7]} 23... Nf4 {[%clk
0:01:21.5]} 24. Bxf4 {[%clk 0:02:05.4]} 24... exf4 {[%clk 0:01:23.4]} 25. Nd4
{[%clk 0:01:54.6]} 25... Qxc5 {[%clk 0:01:19.8]} 26. Nxc6 {[%clk 0:01:35.6]}
26... Qxc6 {[%clk 0:01:17.9]} 27. Qd8+ {[%clk 0:01:36.4]} 27... Bf8 {[%clk
0:01:19.5]} 28. Rd1 {[%clk 0:01:30]} 28... Bg4 {[%clk 0:01:19]} 29. Qd5 {[%clk
0:01:26.3]} 29... Rc8 {[%clk 0:01:11.1]} 30. Rd4 {[%clk 0:01:22.1]} 30... f3
{[%clk 0:01:05.3]} 31. gxf3 {[%clk 0:01:17.1]} 31... Bxf3 {[%clk 0:01:05.7]} 0-1